[Event "Kragero Resort B 2020"]
[Site "Kragero"]
[Date "2020.02.19"]
[Round "2.4"]
[White "Seo, Jung Hyun"]
[Black "Berg, Thomas"]
[Result "1-0"]
[ECO "B38"]
[WhiteElo "1816"]
[BlackElo "1636"]
[Annotator "NA RC"]
[PlyCount "143"]
[EventDate "2020.02.19"]
[EventType "swiss"]
[EventCountry "NOR"]
[SourceTitle "playchess.com"]
[Source "ChessBase"]
[SourceQuality "1"]
[TimeControl "5400+30"]

{[%evp 26,143,66,35,41,0,0,-9,-4,0,0,-37,-23,-29,32767,-31,-50,-63,-25,-70,32767,32767,32767,-12,32767,32767,4,0,-2,32767,0,0,0,0,0,0,0,0,0,0,0,-16,0,-8,32767,32767,32767,32767,32767,32767,32767,32767,0,32767,32767,32767,32767,32767,32767,32767,32767,32767,32767,32767,32767,32767,32767,32767,32767,0,0,32767,62,32767,32767,32767,56,32767,32767,0,0,0,1,8,11,0,0,0,58,62,49,667,371,839,278,0,12843,4067,4199,4618,4618,12192,27997,12366,4638,27997,32767,32767,32767,32767,5092,29973,32767,29973,29966,32767,32767,32767,29978,29981]} 1. e4 {[%emt 0:00:00]} c5 {[%emt 0:00:00]} 2. Nf3 {[%emt 0:00:00]} g6 {[%emt 0:00:00]} 3. d4 {[%emt 0:00:00]} cxd4 {[%emt 0:00:00]} 4. Nxd4 {[%emt 0:00:00]} Nc6 {[%emt 0:00:03]} 5. c4 {[%emt 0:00:00]} Bg7 {[%emt 0:00:14]} 6. Be3 {[%emt 0:00:01]} Nf6 {[%emt 0:01:07]} 7. Nc3 {[%emt 0:00:04]} O-O {[%emt 0:00:43]} 8. Be2 {[%emt 0:00:13]} d6 {[%emt 0:01:02]} 9. f3 {[%emt 0:00:09]} a6 {[%emt 0:00:54]} 10. Qd2 {[%emt 0:01:06]} Nxd4 {[%emt 0:02:08]} 11. Bxd4 {[%emt 0:00:04]} Bd7 {[%emt 0:10:46]} 12. O-O {[%emt 0:01:59]} Qa5 {[%emt 0:07:42] B38: Sicilian: Maroczy Bind with 5...Bg7 and 7...0-0.} 13. Rfd1 {[%emt 0:01:36]} Rfd8 {[%emt 0:14:22] [#]} 14. Kh1 $146 {[%emt 0:19:22]} ({Predecessor:} 14. b4 Qh5 15. Rac1 Bh6 16. f4 Bg4 17. Bxf6 Bxe2 18. Bxe7 Bxd1 19. Bxd8 Rxd8 20. Rxd1 {1-0 (29) Kucuk,D (2066)-Demir,H (1823) Manavgat 2016}) 14... b5 {[%emt 0:08:07]} 15. Bxf6 {[%emt 0:03:37]} Bxf6 {[%emt 0:01:08]} 16. Nd5 {[%emt 0:00:07]} Qxd2 {[%emt 0:00:24]} 17. Nxf6+ {[%emt 0:00:05]} Kg7 {[%emt 0:05:04]} 18. Rxd2 {[%emt 0:00:20]} Kxf6 {[%emt 0:01:09]} 19. f4 {[%emt 0:12:00]} bxc4 {[%emt 0:16:45]} 20. e5+ {[%emt 0:09:03]} Kg7 {[%emt 0:00:20]} 21. exd6 {[%emt 0:00:49]} Be6 {[%emt 0:03:22]} 22. d7 {[%emt 0:05:03]} Rxd7 {[%emt 0:01:08]} 23. Rxd7 {[%emt 0:00:09]} Bxd7 {[%emt 0:00:01]} 24. Bxc4 {[%emt 0:01:37]} Rb8 {[%emt 0:01:09]} 25. b3 {[%emt 0:01:02]} Rb6 {[%emt 0:02:23]} 26. h3 {[%emt 0:03:15]} h5 {[%emt 0:01:13]} 27. Rd1 {[%emt 0:00:46]} Be6 {[%emt 0:01:11]} 28. Rd4 {[%emt 0:02:34]} Bxc4 {[%emt 0:00:55]} 29. Rxc4 {[%emt 0:00:04]} Kf6 {[%emt 0:00:39]} 30. Kh2 {[%emt 0:00:16]} e5 {[%emt 0:01:53]} 31. fxe5+ {[%emt 0:00:07]} Kxe5 {[%emt 0:00:07]} 32. Kg3 {[%emt 0:01:24]} Rd6 {[%emt 0:01:34]} 33. b4 {[%emt 0:04:39]} f6 {[%emt 0:02:46]} 34. Rc5+ {[%emt 0:02:26]} Ke6 {[%emt 0:00:34]} 35. a4 {[%emt 0:00:15]} Rd4 {[%emt 0:02:26]} 36. b5 {[%emt 0:02:15]} axb5 {[%emt 0:00:10]} 37. axb5 {[%emt 0:00:24]} Rb4 {[%emt 0:00:44]} 38. Rc6+ {[%emt 0:00:12]} Ke5 {[%emt 0:02:10]} 39. Rb6 {[%emt 0:01:07]} Kf5 {[%emt 0:00:27]} 40. Rb8 {[%emt 0:00:10]} Rb3+ {[%emt 0:00:16]} 41. Kh2 {[%emt 0:00:11]} Rb1 {[%emt 0:01:57]} 42. b6 {[%emt 0:00:26]} Rb2 {[%emt 0:00:16]} 43. b7 {[%emt 0:00:30]} Rb1 {[%emt 0:00:10]} 44. Kg3 {[%emt 0:01:01]} Rb3+ {[%emt 0:00:06]} 45. Kf2 {[%emt 0:00:08]} Rb2+ {[%emt 0:00:10]} 46. Ke3 {[%emt 0:00:54]} Rb3+ {[%emt 0:00:38]} 47. Kd4 {[%emt 0:08:07]} Rb4+ {[%emt 0:00:00]} 48. Kc5 {[%emt 0:03:56]} Rb1 {[%emt 0:00:14]} 49. Kd6 {[%emt 0:00:11]} Rd1+ {[%emt 0:00:25]} 50. Ke7 {[%emt 0:02:41]} Re1+ {[%emt 0:00:12]} 51. Kf7 {[%emt 0:00:11]} Rb1 {[%emt 0:00:30]} 52. Kg7 {[%emt 0:01:35]} Rb2 {[%emt 0:00:41]} 53. Kh6 {[%emt 0:01:14]} Rb1 {[%emt 0:00:21]} 54. g3 {[%emt 0:06:18]} Rb3 {[%emt 0:01:07]} 55. Rg8 {[%emt 0:05:25]} Rxb7 {[%emt 0:00:17]} 56. Rxg6 {[%emt 0:00:15]} Rb8 {[%emt 0:01:05]} (56... h4 $1 $11) 57. Kxh5 {[%emt 0:00:38]} Rh8+ {[%emt 0:00:36]} 58. Rh6 {[%emt 0:00:05]} Rg8 {[%emt 0:00:55]} 59. g4+ {[%emt 0:00:26]} Ke5 {[%emt 0:00:24] [#]} 60. h4 $2 {[%emt 0:01:15]} ({White must play} 60. Rh7 $1 $18) 60... Rg7 $2 {[%emt 0:01:25] [#]} (60... Rf8 $11) 61. g5 $1 {[%emt 0:00:58]} fxg5 {[%emt 0:01:03]} 62. hxg5 {[%emt 0:00:04]} Rb7 {[%emt 0:02:53]} 63. Rf6 {[%emt 0:00:21]} Rb1 {[%emt 0:01:49]} 64. Rf2 {[%emt 0:00:09]} Rh1+ {[%emt 0:00:51]} 65. Kg6 {[%emt 0:00:05]} Rg1 {[%emt 0:00:53]} 66. Kh6 {[%emt 0:00:04]} Ke6 {[%emt 0:02:20]} 67. g6 {[%emt 0:00:08]} Rh1+ {[%emt 0:00:48]} 68. Kg7 {[%emt 0:00:05]} Rg1 {[%emt 0:01:55]} 69. Kh7 {[%emt 0:00:06]} Rh1+ {[%emt 0:00:06]} 70. Kg8 {[%emt 0:00:05]} Rg1 {[%emt 0:00:14]} 71. g7 {[%emt 0:00:04]} Rb1 {[%emt 0:00:32]} 72. Rh2 {[%emt 0:01:44]} 1-0

[Event "Kragero Resort B 2020"]
[Site "Kragero"]
[Date "2020.02.19"]
[Round "2.5"]
[White "Ostensen, Nicolai Maxime"]
[Black "Westrum, Kim Roger Hansen"]
[Result "0-1"]
[ECO "A01"]
[WhiteElo "1658"]
[BlackElo "1809"]
[Annotator "NA RC"]
[PlyCount "76"]
[EventDate "2020.02.19"]
[EventType "swiss"]
[EventCountry "NOR"]
[SourceTitle "playchess.com"]
[Source "ChessBase"]
[SourceQuality "1"]
[TimeControl "5400+30"]

{[%evp 23,69,-14,-3,0,0,-32,56,43,63,28,89,88,67,80,91,77,139,96,32767,0,32767,41,149,0,0,0,0,0,239,91,127,147,32767,32767,0,0,-8,32767,32767,-75,-54,-187,0,-10,0,0,0,0]} 1. g3 {[%emt 0:00:08]} f5 {[%emt 0:02:51]} 2. b3 {[%emt 0:00:22]} Nf6 {[%emt 0:01:15]} 3. Bb2 {[%emt 0:01:12]} d6 {[%emt 0:02:22]} 4. Bg2 {[%emt 0:00:54]} e5 {[%emt 0:02:46]} 5. d4 {[%emt 0:01:06]} e4 {[%emt 0:02:38]} 6. e3 {[%emt 0:00:58] A01: Nimzowitsch-Larsen Opening.} d5 {[%emt 0:02:20]} 7. Ne2 {[%emt 0:01:45]} Bd6 {[%emt 0:00:43]} 8. c4 {[%emt 0:00:21]} c6 {[%emt 0:00:12]} 9. Nbc3 {[%emt 0:01:24] [#]} Be6 $146 {[%emt 0:04:40]} ({Predecessor:} 9... Na6 10. a3 Nc7 11. cxd5 Ncxd5 12. Nxd5 Nxd5 13. Nc3 O-O 14. O-O Be6 15. Qc2 Qe7 {0-1 (39) Wittke,M (2220)-Jaehnisch,F Germany 1993}) 10. c5 {[%emt 0:00:51]} Bc7 {[%emt 0:00:11]} 11. b4 {[%emt 0:00:23]} O-O {[%emt 0:03:52]} 12. O-O {[%emt 0:01:48]} g5 {[%emt 0:05:17]} 13. b5 {[%emt 0:01:46]} Qe8 {[%emt 0:03:22]} 14. Qb3 {[%emt 0:00:46]} f4 {[%emt 0:08:14]} (14... Rf7 $11) 15. exf4 {[%emt 0:00:44]} gxf4 {[%emt 0:00:09]} 16. bxc6 {[%emt 0:01:07]} Nxc6 {[%emt 0:01:56] [#]} 17. Nb5 $1 {[%emt 0:01:22]} ({But not} 17. Qxb7 $2 Ba5 $19) ({Of course not} 17. gxf4 $6 Na5 $15) 17... Bb8 {[%emt 0:02:18]} 18. Nxf4 {[%emt 0:00:16]} ({Much weaker is} 18. gxf4 Na5 $11) 18... Bxf4 {[%emt 0:02:28]} 19. gxf4 {[%emt 0:00:09]} Na5 {[%emt 0:01:28]} 20. Qg3+ {[%emt 0:01:24]} Kh8 {[%emt 0:00:35] [#]} 21. Nc7 {[%emt 0:00:31]} (21. Nd6 $1 $16 {[%cal Rd6e8]} Qe7 22. Kh1) 21... Qc8 {[%emt 0:01:40]} 22. f5 {[%emt 0:11:10]} (22. Nxa8 $18 Qxa8 23. Qh4) 22... Bxf5 {[%emt 0:01:03]} 23. Kh1 {[%emt 0:00:30]} (23. Nxa8 $16 Qxa8 24. Qf4) 23... Nc4 {[%emt 0:01:28]} 24. Nxa8 {[%emt 0:01:04]} Nxb2 {[%emt 0:02:18]} 25. Nc7 {[%emt 0:02:45]} a6 $2 {[%emt 0:03:01] [#]} (25... Qd7 $1 $11) 26. Rab1 {[%emt 0:09:32]} (26. Nxd5 $1 $18 {[%mdl 512] is more deadly.} Nxd5 27. Qb3 {[%mdl 64] Double Attack}) 26... Nd3 {[%emt 0:02:43]} ({Black should play} 26... Nc4 $1 $14) 27. Qd6 {[%emt 0:01:35]} Ng4 {[%emt 0:05:42]} 28. Nxd5 {[%emt 0:04:24]} Rd8 {[%emt 0:03:52]} 29. Nb6 {[%emt 0:01:46]} Rxd6 {[%emt 0:00:22]} 30. Nxc8 {[%emt 0:00:05]} Rh6 {[%emt 0:00:07]} 31. h3 {[%emt 0:04:01]} (31. Rxb7 {gets mated.} Rxh2+ 32. Kg1 Nf4 33. Rxh7+ Bxh7 34. Rd1 Rxg2+ {[%mdl 64] Double Attack} 35. Kf1 Rxf2+ {[%mdl 64] Double Attack} 36. Kg1 Ne2+ 37. Kh1 Rh2#) (31. h4 $11 Rxh4+ 32. Kg1) 31... Bxc8 {[%emt 0:00:41]} 32. Bxe4 {[%emt 0:01:46]} (32. c6 $15 b5 33. Kg1) 32... Rxh3+ $2 {[%emt 0:08:42]} ({Black should try} 32... Ngxf2+ $19 33. Kg1 Nxh3+ 34. Kg2 Nhf4+ 35. Kg1 Ne2+ {[%mdl 64] Double Attack} 36. Kg2 Nef4+ 37. Kg1 Ne2+ {[%mdl 64] Double Attack} 38. Kg2 Bh3+ {[%mdl 64] Skewer} 39. Kf3 Bxf1 40. Rxf1 Nxd4+ 41. Ke3 Nxc5 42. Kxd4 Nxe4 43. Kxe4 Kg7) 33. Kg1 {[%emt 0:00:18]} Nf4 {[%emt 0:00:19]} 34. Rfe1 {[%emt 0:15:39]} (34. Bxb7 {leads to mate.} Rh2 35. Rfc1 Bxb7 36. c6 Rg2+ 37. Kf1 Rxf2+ {[%mdl 64] Double Attack} 38. Kg1 {[#]} Ne2+ $1 {[%mdl 576] Double Attack} 39. Kh1 Rh2#) 34... Rh2 {[%emt 0:00:46]} 35. Rb2 $11 {[%emt 0:00:24]} Bd7 {[%emt 0:10:00]} 36. Bf3 {[%emt 0:03:22]} Nh3+ {[%emt 0:00:15]} 37. Kf1 {[%emt 0:00:21]} Bb5+ {[%emt 0:00:02]} 38. Rxb5 {[%emt 0:02:05]} Rxf2# {[%emt 0:00:07]} 0-1

[Event "Kragero Resort B 2020"]
[Site "Kragero"]
[Date "2020.02.19"]
[Round "2.6"]
[White "Strand, Amund Pihl"]
[Black "Aasen, Fredrik"]
[Result "1/2-1/2"]
[ECO "A80"]
[WhiteElo "1806"]
[BlackElo "1625"]
[Annotator "NA RC"]
[PlyCount "91"]
[EventDate "2020.02.19"]
[EventType "swiss"]
[EventCountry "NOR"]
[SourceTitle "playchess.com"]
[Source "ChessBase"]
[SourceQuality "1"]
[TimeControl "5400+30"]

{[%evp 17,86,0,8,0,41,39,59,47,68,77,113,116,118,125,143,130,32767,118,32767,32767,157,165,378,164,189,32767,32767,32767,32767,32767,66,43,52,32767,32767,32767,32767,32767,32767,32767,32767,19,40,32,32,31,32767,0,32767,32767,32767,10,31,32767,33,0,0,0,3,2,2,0,0,0,0,0,0,0,0,0,0]} 1. d4 {[%emt 0:00:00]} f5 {[%emt 0:00:00]} 2. Nf3 {[%emt 0:00:02]} Nf6 {[%emt 0:00:00]} 3. e3 {[%emt 0:02:12]} g6 {[%emt 0:02:31]} 4. b3 {[%emt 0:00:45]} d6 {[%emt 0:01:09]} 5. Bb2 {[%emt 0:00:20]} Bg7 {[%emt 0:00:44]} 6. Nbd2 {[%emt 0:04:55] A80: Dutch Defence: Unusual White second moves.} e6 {[%emt 0:01:46]} 7. Bd3 {[%emt 0:02:54]} O-O {[%emt 0:02:24]} 8. Qe2 {[%emt 0:08:05] [#]} a5 $146 {[%emt 0:03:38]} ({Predecessor:} 8... Qe7 9. e4 fxe4 10. Nxe4 Nd5 11. O-O-O Nc6 12. a3 Bd7 13. g3 Rxf3 14. Qxf3 Nxd4 {1-0 (24) Dinev,D (2298)-Miskoski,M (2015) Skopje 2008}) 9. a3 {[%emt 0:05:55]} Nbd7 {[%emt 0:04:11]} 10. O-O {[%emt 0:03:38]} h6 {[%emt 0:02:32]} 11. e4 {[%emt 0:04:07]} Kh7 {[%emt 0:07:09]} 12. Rad1 {[%emt 0:07:51]} Nh5 {[%emt 0:04:55] [#]} 13. g3 $1 {[%emt 0:02:36]} Bh8 {[%emt 0:05:29]} 14. Rfe1 {[%emt 0:10:09]} b6 {[%emt 0:04:30]} 15. exf5 {[%emt 0:05:20]} exf5 {[%emt 0:02:33]} 16. Nh4 {[%emt 0:03:12]} Ng7 {[%emt 0:09:24]} 17. Qf3 {[%emt 0:18:54]} Rb8 {[%emt 0:02:07]} 18. d5 {[%emt 0:01:29]} Bb7 {[%emt 0:05:30]} (18... Nc5 $142) 19. c4 {[%emt 0:02:20]} Re8 $2 {[%emt 0:05:21]} (19... a4 $16 20. bxa4 Ra8) 20. Bc2 {[%emt 0:06:10]} (20. Bxg7 $142 Bxg7 {[#]} 21. Nxg6 $1 {[%mdl 512]}) 20... Ne5 {[%emt 0:05:14]} 21. Qg2 {[%emt 0:00:31]} Qd7 {[%emt 0:04:06]} 22. Nhf3 {[%emt 0:00:58]} Nxf3+ {[%emt 0:02:26]} 23. Qxf3 {[%emt 0:00:56]} Rxe1+ {[%emt 0:02:27]} 24. Rxe1 {[%emt 0:00:02]} Re8 {[%emt 0:00:37]} 25. Qd1 {[%emt 0:01:03]} Rxe1+ {[%emt 0:03:26]} 26. Qxe1 {[%emt 0:00:01]} Qe8 {[%emt 0:01:55]} 27. Qxe8 {[%emt 0:02:44]} Nxe8 {[%emt 0:00:10]} 28. Bxh8 {[%emt 0:00:20]} Kxh8 {[%emt 0:00:13]} 29. f3 {[%emt 0:00:59]} Bc8 {[%emt 0:01:08]} 30. Kf2 {[%emt 0:00:34]} Kg7 {[%emt 0:01:33]} 31. Ke3 {[%emt 0:00:20]} Nf6 {[%emt 0:02:36]} 32. b4 {[%emt 0:00:25]} axb4 {[%emt 0:00:38]} 33. axb4 {[%emt 0:00:03]} Bd7 {[%emt 0:00:50]} 34. Kd4 {[%emt 0:01:07]} Kf7 {[%emt 0:03:01]} 35. Nb1 {[%emt 0:01:10]} c5+ {[%emt 0:04:34]} 36. bxc5 {[%emt 0:01:55]} (36. dxc6 $5 Bxc6 37. Bd1 $14) 36... bxc5+ {[%emt 0:00:29]} 37. Ke3 {[%emt 0:00:46]} Ne8 {[%emt 0:01:22]} 38. Nc3 {[%emt 0:00:18]} Nc7 {[%emt 0:01:02]} 39. Na4 {[%emt 0:01:30]} Bxa4 {[%emt 0:00:53]} 40. Bxa4 {[%emt 0:00:03]} Ke7 {[%emt 0:02:02]} 41. f4 {[%emt 0:01:44]} Na6 {[%emt 0:02:56]} 42. Kd3 {[%emt 0:00:40]} Nb4+ {[%emt 0:00:40]} 43. Kc3 {[%emt 0:00:35]} Na2+ $11 {[%emt 0:00:36]} 44. Kc2 {[%emt 0:01:02]} Nb4+ {[%emt 0:00:35]} 45. Kd2 {[%emt 0:00:19]} Kd8 {[%emt 0:00:26]} 46. Kc3 {[%emt 0:01:17]} 1/2-1/2

[Event "Kragero Resort B 2020"]
[Site "Kragero"]
[Date "2020.02.19"]
[Round "2.7"]
[White "Bernstein, Jonas August"]
[Black "Jensson, Erlingur"]
[Result "1-0"]
[ECO "B00"]
[WhiteElo "1798"]
[BlackElo "1611"]
[Annotator "NA RC"]
[PlyCount "135"]
[EventDate "2020.02.19"]
[EventType "swiss"]
[EventCountry "NOR"]
[SourceTitle "playchess.com"]
[Source "ChessBase"]
[SourceQuality "1"]
[TimeControl "5400+30"]

1. d4 {[%emt 0:03:28]} b6 {[%emt 0:00:00]} 2. e4 {[%emt 0:00:46]} Bb7 {[%emt 0:00:00]} 3. Bd3 {[%emt 0:00:22]} e6 {[%emt 0:00:00]} 4. Nf3 {[%emt 0:00:48]} d5 {[%emt 0:03:30]} 5. e5 {[%emt 0:02:14]} Nd7 {[%emt 0:04:41]} 6. O-O {[%emt 0:04:24]} h6 {[%emt 0:00:34]} 7. c3 {[%emt 0:07:10]} c5 {[%emt 0:01:52]} 8. Nfd2 {[%emt 0:02:48]} Qc7 {[%emt 0:07:26]} 9. a4 {[%emt 0:04:07]} Ne7 {[%emt 0:02:40]} 10. Na3 {[%emt 0:04:09]} Bc6 {[%emt 0:02:38]} 11. Nc2 {[%emt 0:11:23]} c4 {[%emt 0:04:09]} 12. Be2 {[%emt 0:00:12]} g6 {[%emt 0:05:13]} 13. Ne3 {[%emt 0:06:00]} Nf5 {[%emt 0:07:53]} 14. Qc2 {[%emt 0:04:54]} Be7 {[%emt 0:02:17]} 15. Nf3 {[%emt 0:02:09]} b5 {[%emt 0:07:12]} 16. axb5 {[%emt 0:02:39]} Bxb5 {[%emt 0:00:33]} 17. Bd2 {[%emt 0:07:47]} Nb6 {[%emt 0:03:17]} 18. b4 {[%emt 0:09:30]} Qd7 {[%emt 0:03:56]} 19. Ra3 {[%emt 0:04:26]} Kf8 {[%emt 0:15:20]} 20. Rfa1 {[%emt 0:01:23]} Kg7 {[%emt 0:00:54]} 21. Bd1 {[%emt 0:03:18]} a6 {[%emt 0:04:16]} 22. Qc1 {[%emt 0:02:12]} Rh7 {[%emt 0:05:28]} 23. Bc2 {[%emt 0:01:14]} Rah8 {[%emt 0:04:02]} 24. Nd1 {[%emt 0:01:43]} Nh4 {[%emt 0:04:02]} 25. Nxh4 {[%emt 0:02:33]} Bxh4 {[%emt 0:00:05]} 26. Nb2 {[%emt 0:03:47]} Rb8 {[%emt 0:03:14]} 27. Na4 {[%emt 0:05:14]} Nxa4 {[%emt 0:00:56]} 28. Bxa4 {[%emt 0:00:02]} Bd8 {[%emt 0:00:27]} 29. Bxb5 {[%emt 0:00:58]} axb5 {[%emt 0:00:02]} 30. Ra7 {[%emt 0:00:11]} Rb7 {[%emt 0:00:26]} 31. Qa3 {[%emt 0:00:35]} Bb6 {[%emt 0:00:36]} 32. Rxb7 {[%emt 0:01:29]} Qxb7 {[%emt 0:00:02]} 33. Qa6 {[%emt 0:00:02]} Qc6 {[%emt 0:03:17]} 34. Ra5 {[%emt 0:00:37]} Rh8 {[%emt 0:00:23]} 35. Qxb5 {[%emt 0:01:35]} Qc7 {[%emt 0:01:12]} 36. Ra6 {[%emt 0:00:41]} Rb8 {[%emt 0:00:31]} 37. Qa4 {[%emt 0:00:18]} Qb7 {[%emt 0:00:56]} 38. Bc1 {[%emt 0:00:51]} Kh7 {[%emt 0:01:12]} 39. f3 {[%emt 0:00:28]} Qc7 {[%emt 0:00:59]} 40. Be3 {[%emt 0:00:32]} Qb7 {[%emt 0:00:09]} 41. Kf2 {[%emt 0:00:13]} Kg7 {[%emt 0:00:10]} 42. Ke2 {[%emt 0:00:26]} Kh7 {[%emt 0:01:46]} 43. Bf2 {[%emt 0:00:26]} Kg7 {[%emt 0:00:00]} 44. Bh4 {[%emt 0:00:12]} Kh7 {[%emt 0:00:54]} 45. Bf6 {[%emt 0:00:19]} Rc8 {[%emt 0:00:49]} 46. Kf2 {[%emt 0:01:36]} Rb8 {[%emt 0:00:14]} 47. Kg3 {[%emt 0:00:07]} Rc8 {[%emt 0:00:18]} 48. Qb5 {[%emt 0:00:56]} Rb8 {[%emt 0:02:00]} 49. h3 {[%emt 0:00:30]} Qc7 {[%emt 0:00:46]} 50. Qa4 {[%emt 0:00:32]} Qb7 {[%emt 0:00:19]} 51. h4 {[%emt 0:00:16]} Rc8 {[%emt 0:00:22]} 52. Qa1 {[%emt 0:00:15]} Rb8 {[%emt 0:00:36]} 53. Kh3 {[%emt 0:00:48]} Rc8 {[%emt 0:00:27]} 54. g4 {[%emt 0:00:09]} Rb8 {[%emt 0:00:24]} 55. f4 {[%emt 0:00:13]} Qd7 {[%emt 0:00:41]} 56. Kg3 {[%emt 0:00:43]} Qb7 {[%emt 0:00:37]} 57. Kh3 {[%emt 0:00:25]} Rc8 {[%emt 0:00:10]} 58. Qa4 {[%emt 0:00:14]} Rb8 {[%emt 0:00:12]} 59. Qa2 {[%emt 0:01:15]} Rc8 {[%emt 0:00:07]} 60. Kg2 {[%emt 0:00:36]} Rb8 {[%emt 0:00:09]} 61. Qa4 {[%emt 0:00:11]} Rc8 {[%emt 0:00:10]} 62. Kf3 {[%emt 0:00:41]} Rb8 {[%emt 0:00:06]} 63. Qb5 {[%emt 0:00:42]} Qc7 {[%emt 0:00:24]} 64. Qa4 {[%emt 0:00:29]} Qb7 {[%emt 0:00:07]} 65. Qa1 {[%emt 0:00:12]} Rc8 {[%emt 0:00:19]} 66. Ra2 {[%emt 0:00:04]} Rb8 {[%emt 0:00:22]} 67. h5 {[%emt 0:00:39]} Bd8 {[%emt 0:01:49]} 68. hxg6+ {[%emt 0:02:06]} 1-0

[Event "Kragero Resort B 2020"]
[Site "Kragero"]
[Date "2020.02.19"]
[Round "2.8"]
[White "Haug, Havard"]
[Black "Austad, Eirik"]
[Result "1/2-1/2"]
[ECO "B08"]
[WhiteElo "1626"]
[BlackElo "1796"]
[Annotator "NA RC"]
[PlyCount "116"]
[EventDate "2020.02.19"]
[EventType "swiss"]
[EventCountry "NOR"]
[SourceTitle "playchess.com"]
[Source "ChessBase"]
[SourceQuality "1"]
[TimeControl "5400+30"]

1. e4 {[%emt 0:00:00]} d6 {[%emt 0:00:00]} 2. d4 {[%emt 0:00:00]} Nf6 {[%emt 0:00:01]} 3. Nc3 {[%emt 0:00:00]} g6 {[%emt 0:00:11]} 4. Nf3 {[%emt 0:00:12]} Bg7 {[%emt 0:02:07]} 5. Bc4 {[%emt 0:03:11]} Nxe4 {[%emt 0:04:04]} 6. Bxf7+ {[%emt 0:00:24]} Kxf7 {[%emt 0:00:06]} 7. Nxe4 {[%emt 0:00:06]} Rf8 {[%emt 0:01:40]} 8. O-O {[%emt 0:00:23]} Kg8 {[%emt 0:01:10]} 9. h3 {[%emt 0:00:32]} Nd7 {[%emt 0:22:23]} 10. c3 {[%emt 0:01:06]} Nf6 {[%emt 0:02:08]} 11. Nxf6+ {[%emt 0:00:36]} Bxf6 {[%emt 0:09:20]} 12. Bh6 {[%emt 0:01:29]} Re8 {[%emt 0:03:34]} 13. Qb3+ {[%emt 0:01:41]} e6 {[%emt 0:03:14]} 14. Bf4 {[%emt 0:01:51]} b6 {[%emt 0:01:54]} 15. Rfe1 {[%emt 0:00:26]} Qe7 {[%emt 0:02:00]} 16. Re3 {[%emt 0:02:34]} c5 {[%emt 0:02:51]} 17. dxc5 {[%emt 0:01:33]} bxc5 {[%emt 0:02:46]} 18. Rd1 {[%emt 0:02:08]} Rd8 {[%emt 0:02:42]} 19. Rde1 {[%emt 0:01:49]} Kg7 {[%emt 0:02:16]} 20. Qc2 {[%emt 0:03:26]} e5 {[%emt 0:02:12]} 21. Bg3 {[%emt 0:01:48]} Bf5 {[%emt 0:01:47]} 22. Qd1 {[%emt 0:00:47]} Qf7 {[%emt 0:01:31]} 23. b3 {[%emt 0:00:51]} g5 {[%emt 0:02:57]} 24. Nh2 {[%emt 0:01:09]} h5 {[%emt 0:01:40]} 25. f3 {[%emt 0:01:03]} a5 {[%emt 0:02:53]} 26. a4 {[%emt 0:00:37]} c4 {[%emt 0:01:09]} 27. bxc4 {[%emt 0:00:49]} Qxc4 {[%emt 0:04:33]} 28. Bf2 {[%emt 0:00:40]} d5 {[%emt 0:01:28]} 29. Rxe5 {[%emt 0:01:13]} Bxe5 {[%emt 0:01:58]} 30. Rxe5 {[%emt 0:00:05]} Qd3 {[%emt 0:04:45]} 31. Qc1 {[%emt 0:01:02]} Qb1 {[%emt 0:01:00]} 32. Qxb1 {[%emt 0:00:19]} Bxb1 {[%emt 0:00:03]} 33. Rxg5+ {[%emt 0:00:11]} Bg6 {[%emt 0:03:08]} 34. g4 {[%emt 0:01:27]} hxg4 {[%emt 0:01:24]} 35. h4 {[%emt 0:00:57]} g3 {[%emt 0:01:33]} 36. Bxg3 {[%emt 0:00:29]} Kf7 {[%emt 0:01:21]} 37. h5 {[%emt 0:01:48]} Bc2 {[%emt 0:00:15]} 38. Ng4 {[%emt 0:01:24]} Bxa4 {[%emt 0:02:21]} 39. h6 {[%emt 0:01:06]} Bc2 {[%emt 0:00:50]} 40. Rg7+ {[%emt 0:01:39]} Ke6 {[%emt 0:01:28]} 41. Bh4 {[%emt 0:04:55]} Rd7 {[%emt 0:00:58]} 42. Rg5 {[%emt 0:00:52]} a4 {[%emt 0:00:37]} 43. Re5+ {[%emt 0:01:42]} Kf7 {[%emt 0:00:06]} 44. Nf6 {[%emt 0:00:38]} Rd6 {[%emt 0:01:09]} 45. Nxd5 {[%emt 0:02:07]} Rxh6 {[%emt 0:00:41]} 46. Bg5 {[%emt 0:03:14]} Rc6 {[%emt 0:01:35]} 47. f4 {[%emt 0:04:41]} a3 {[%emt 0:00:21]} 48. Re7+ {[%emt 0:00:25]} Kg8 {[%emt 0:00:52]} 49. Nf6+ {[%emt 0:00:50]} Kh8 {[%emt 0:01:31]} 50. Bh6 {[%emt 0:00:55]} Rg8+ {[%emt 0:01:36]} 51. Nxg8 {[%emt 0:00:14]} Kxg8 {[%emt 0:00:19]} 52. Ra7 {[%emt 0:01:09]} Rxc3 {[%emt 0:00:52]} 53. Bg7 {[%emt 0:00:22]} Rg3+ {[%emt 0:00:33]} 54. Kf2 {[%emt 0:00:07]} Rxg7 {[%emt 0:00:14]} 55. Rxa3 {[%emt 0:00:07]} Be4 {[%emt 0:00:24]} 56. Rg3 {[%emt 0:00:08]} Rxg3 {[%emt 0:00:26]} 57. Kxg3 {[%emt 0:00:05]} Bb1 {[%emt 0:00:06]} 58. f5 {[%emt 0:00:03]} Bxf5 {[%emt 0:00:05]} 1/2-1/2